[Event "*** Titled Tuesday Blitz"]
[Site "Chess.com"]
[Date "2021.04.27"]
[Round "9"]
[White "blitzking1729"]
[Black "Ajedrez_con_German"]
[Result "1/2-1/2"]
[WhiteElo "2663"]
[BlackElo "2531"]
[TimeControl "180+1"]
[EndTime "11:45:12 PDT"]
[Termination "Game drawn - insufficient material"]

1. d4 {[%clk 0:03:00.8]} 1... e6 {[%clk 0:02:49]} 2. Nf3 {[%clk 0:02:59.7]} 2...
f5 {[%clk 0:02:48.3]} 3. Bg5 {[%clk 0:02:59.2]} 3... Be7 {[%clk 0:02:47.5]} 4.
Bxe7 {[%clk 0:02:58.8]} 4... Qxe7 {[%clk 0:02:48.3]} 5. Nbd2 {[%clk 0:02:55.3]}
5... Nf6 {[%clk 0:02:48.1]} 6. e3 {[%clk 0:02:55.1]} 6... O-O {[%clk 0:02:43.1]}
7. Bd3 {[%clk 0:02:54.4]} 7... d5 {[%clk 0:02:43.2]} 8. Ne5 {[%clk 0:02:54.4]}
8... Nbd7 {[%clk 0:02:42.8]} 9. f4 {[%clk 0:02:54]} 9... Nxe5 {[%clk 0:02:38.4]}
10. fxe5 {[%clk 0:02:54]} 10... Ne4 {[%clk 0:02:37.9]} 11. O-O {[%clk
0:02:46.2]} 11... Bd7 {[%clk 0:02:28.1]} 12. Bxe4 {[%clk 0:02:43.9]} 12... fxe4
{[%clk 0:02:27.9]} 13. Qe2 {[%clk 0:02:43.3]} 13... Qb4 {[%clk 0:02:21.2]} 14.
Rxf8+ {[%clk 0:02:25.7]} 14... Rxf8 {[%clk 0:02:20.4]} 15. Nb3 {[%clk 0:02:26]}
15... a5 {[%clk 0:02:04.4]} 16. Qd2 {[%clk 0:02:09]} 16... Qxd2 {[%clk
0:01:55.8]} 17. Nxd2 {[%clk 0:02:09.9]} 17... Kf7 {[%clk 0:01:49.2]} 18. Rf1+
{[%clk 0:02:08.2]} 18... Ke7 {[%clk 0:01:49.1]} 19. Rxf8 {[%clk 0:02:09.1]}
19... Kxf8 {[%clk 0:01:50]} 20. Kf2 {[%clk 0:02:08.4]} 20... Ke7 {[%clk
0:01:49.5]} 21. Nb1 {[%clk 0:02:04.5]} 21... b6 {[%clk 0:01:47.1]} 22. Nc3
{[%clk 0:02:03.8]} 22... Kf7 {[%clk 0:01:43.1]} 23. a3 {[%clk 0:02:03.4]} 23...
c5 {[%clk 0:01:35.3]} 24. Ne2 {[%clk 0:01:57.6]} 24... Bb5 {[%clk 0:01:33.9]}
25. Ng3 {[%clk 0:01:41]} 25... Bc4 {[%clk 0:01:23.3]} 26. Nh5 {[%clk 0:01:28.2]}
26... Ba6 {[%clk 0:01:08.2]} 27. Nf4 {[%clk 0:01:22.8]} 27... Bb5 {[%clk
0:00:59.4]} 28. c3 {[%clk 0:01:21.7]} 28... a4 {[%clk 0:00:53.2]} 29. h4 {[%clk
0:01:21.1]} 29... Ba6 {[%clk 0:00:51.7]} 30. Ke1 {[%clk 0:01:15.6]} 30... Bb5
{[%clk 0:00:48.8]} 31. g4 {[%clk 0:01:10.2]} 31... Ke7 {[%clk 0:00:43.1]} 32.
Kf2 {[%clk 0:01:09.4]} 32... Kf7 {[%clk 0:00:41.7]} 33. Kg3 {[%clk 0:01:09.1]}
33... Bc4 {[%clk 0:00:38]} 34. h5 {[%clk 0:01:05.8]} 34... h6 {[%clk 0:00:31.9]}
35. Kh4 {[%clk 0:01:05.1]} 35... Bb5 {[%clk 0:00:30.5]} 36. g5 {[%clk 0:01:05]}
36... hxg5+ {[%clk 0:00:30.8]} 37. Kxg5 {[%clk 0:01:04.8]} 37... Bc4 {[%clk
0:00:30.3]} 38. Ng6 {[%clk 0:00:55]} 38... Be2 {[%clk 0:00:24.2]} 39. Nh8+
{[%clk 0:00:52.1]} 39... Kg8 {[%clk 0:00:23.6]} 40. Ng6 {[%clk 0:00:52]} 40...
Kf7 {[%clk 0:00:23.9]} 41. Nf4 {[%clk 0:00:52]} 41... Bc4 {[%clk 0:00:23.5]} 42.
h6 {[%clk 0:00:49.9]} 42... gxh6+ {[%clk 0:00:23.2]} 43. Kxh6 {[%clk 0:00:50.8]}
43... Bf1 {[%clk 0:00:23.7]} 44. Nh5 {[%clk 0:00:45.3]} 44... Be2 {[%clk
0:00:20.2]} 45. Nf6 {[%clk 0:00:42.3]} 45... Bb5 {[%clk 0:00:20.2]} 46. Nh7
{[%clk 0:00:41.7]} 46... Be2 {[%clk 0:00:16.9]} 47. Ng5+ {[%clk 0:00:41.2]}
47... Ke7 {[%clk 0:00:17.3]} 48. Kg7 {[%clk 0:00:40.8]} 48... Bg4 {[%clk
0:00:17]} 49. Nf7 {[%clk 0:00:39.2]} 49... Be2 {[%clk 0:00:15.4]} 50. Nh6 {[%clk
0:00:39]} 50... Kd7 {[%clk 0:00:14.9]} 51. Kf6 {[%clk 0:00:37.1]} 51... Bf1
{[%clk 0:00:14.8]} 52. Nf7 {[%clk 0:00:27.1]} 52... Bh3 {[%clk 0:00:13.1]} 53.
Ng5 {[%clk 0:00:23.7]} 53... Bg4 {[%clk 0:00:13.1]} 54. Kf7 {[%clk 0:00:22.7]}
54... Bf5 {[%clk 0:00:12]} 55. Kf6 {[%clk 0:00:19.6]} 55... Bg4 {[%clk 0:00:12]}
56. Nh7 {[%clk 0:00:19.7]} 56... cxd4 {[%clk 0:00:09.9]} 57. cxd4 {[%clk
0:00:17.7]} 57... Kc6 {[%clk 0:00:09.2]} 58. Nf8 {[%clk 0:00:16.1]} 58... Kb5
{[%clk 0:00:09.5]} 59. Nxe6 {[%clk 0:00:16.4]} 59... Kc4 {[%clk 0:00:09.6]} 60.
Nc7 {[%clk 0:00:13.8]} 60... Kb3 {[%clk 0:00:07.5]} 61. Nxd5 {[%clk 0:00:13.7]}
61... Kxb2 {[%clk 0:00:07.9]} 62. Nxb6 {[%clk 0:00:13.8]} 62... Kxa3 {[%clk
0:00:08.4]} 63. e6 {[%clk 0:00:13.7]} 63... Kb4 {[%clk 0:00:08.3]} 64. e7 {[%clk
0:00:12.7]} 64... Bh5 {[%clk 0:00:08.2]} 65. Nxa4 {[%clk 0:00:11]} 65... Kxa4
{[%clk 0:00:08.6]} 66. d5 {[%clk 0:00:10.8]} 66... Kb5 {[%clk 0:00:09]} 67. Ke6
{[%clk 0:00:08.3]} 67... Kc5 {[%clk 0:00:07.1]} 68. d6 {[%clk 0:00:03.7]} 68...
Kc6 {[%clk 0:00:07.5]} 69. d7 {[%clk 0:00:02.6]} 69... Bg4+ {[%clk 0:00:07.6]}
70. Ke5 {[%clk 0:00:02]} 70... Bxd7 {[%clk 0:00:08.5]} 71. Kxe4 {[%clk 0:00:02]}
71... Kd6 {[%clk 0:00:08.6]} 72. e8=Q {[%clk 0:00:01.3]} 72... Bxe8 {[%clk
0:00:08.3]} 73. Kd4 {[%clk 0:00:02.2]} 73... Ke7 {[%clk 0:00:09.1]} 74. e4
{[%clk 0:00:03.1]} 74... Bf7 {[%clk 0:00:10]} 75. e5 {[%clk 0:00:04]} 75... Be8
{[%clk 0:00:10.9]} 76. e6 {[%clk 0:00:04.7]} 76... Kxe6 {[%clk 0:00:11]} 1/2-1/2

[Event "*** Titled Tuesday Blitz"]
[Site "Chess.com"]
[Date "2021.04.27"]
[Round "9"]
[White "MatyChess1"]
[Black "ChristopherYoo"]
[Result "0-1"]
[WhiteElo "2675"]
[BlackElo "2933"]
[TimeControl "180+1"]
[EndTime "11:45:14 PDT"]
[Termination "ChristopherYoo won by resignation"]

1. e4 {[%clk 0:03:00.9]} 1... c5 {[%clk 0:02:59.2]} 2. Nf3 {[%clk 0:03:01.5]}
2... e6 {[%clk 0:02:59.5]} 3. g3 {[%clk 0:03:01.5]} 3... Nc6 {[%clk 0:02:58.4]}
4. Bg2 {[%clk 0:03:01.9]} 4... Nf6 {[%clk 0:02:58.9]} 5. Qe2 {[%clk 0:03:02.3]}
5... Be7 {[%clk 0:02:54.6]} 6. O-O {[%clk 0:03:00.5]} 6... d5 {[%clk 0:02:54.3]}
7. exd5 {[%clk 0:03:00.3]} 7... exd5 {[%clk 0:02:55.2]} 8. d4 {[%clk 0:02:57.7]}
8... cxd4 {[%clk 0:02:51.8]} 9. Nbd2 {[%clk 0:02:56.9]} 9... Bg4 {[%clk
0:02:49.4]} 10. Nb3 {[%clk 0:02:56.4]} 10... O-O {[%clk 0:02:49.4]} 11. Qd3
{[%clk 0:02:51.2]} 11... Bxf3 {[%clk 0:02:45.2]} 12. Bxf3 {[%clk 0:02:47.2]}
12... Qb6 {[%clk 0:02:45]} 13. a3 {[%clk 0:02:46.4]} 13... Ne5 {[%clk
0:02:30.5]} 14. Qd1 {[%clk 0:02:44]} 14... d3 {[%clk 0:02:24.5]} 15. Bg2 {[%clk
0:02:36.8]} 15... dxc2 {[%clk 0:02:19.8]} 16. Qxc2 {[%clk 0:02:34.4]} 16... Rac8
{[%clk 0:02:17]} 17. Qd1 {[%clk 0:02:35]} 17... Rfd8 {[%clk 0:02:11.2]} 18. Be3
{[%clk 0:02:30.4]} 18... Qa6 {[%clk 0:02:10.9]} 19. Re1 {[%clk 0:02:26.7]} 19...
Nc4 {[%clk 0:01:53.3]} 20. Bd4 {[%clk 0:02:23.9]} 20... Ne4 {[%clk 0:01:52.2]}
21. Bxe4 {[%clk 0:02:09]} 21... dxe4 {[%clk 0:01:51.8]} 22. Qg4 {[%clk
0:02:08.8]} 22... Bf6 {[%clk 0:01:47.7]} 23. Rxe4 {[%clk 0:02:06.3]} 23... Bxd4
{[%clk 0:01:44.1]} 24. Rxd4 {[%clk 0:02:05]} 24... Nxb2 {[%clk 0:01:32]} 25. Re1
{[%clk 0:01:48.3]} 25... Qf6 {[%clk 0:01:16.3]} 26. Rd7 {[%clk 0:01:35.2]} 26...
g6 {[%clk 0:01:00.7]} 27. Ree7 {[%clk 0:01:21]} 27... Rxd7 {[%clk 0:00:58.4]}
28. Qxd7 {[%clk 0:01:14.4]} 28... Rc2 {[%clk 0:00:53]} 29. Qd8+ {[%clk
0:00:58.5]} 29... Kg7 {[%clk 0:00:52.1]} 30. Qd4 {[%clk 0:00:57.1]} 30... Qxd4
{[%clk 0:00:37.9]} 31. Nxd4 {[%clk 0:00:57.5]} 31... Rd2 {[%clk 0:00:37.9]} 32.
Nf3 {[%clk 0:00:48.2]} 32... Rc2 {[%clk 0:00:22]} 33. h4 {[%clk 0:00:45.5]}
33... Nd3 {[%clk 0:00:20.6]} 34. Rxb7 {[%clk 0:00:40.7]} 34... Rc1+ {[%clk
0:00:12.5]} 35. Kg2 {[%clk 0:00:38]} 35... Rc2 {[%clk 0:00:12.8]} 36. Kg1 {[%clk
0:00:37.7]} 36... h6 {[%clk 0:00:07.1]} 37. Rxa7 {[%clk 0:00:30.4]} 37... Nxf2
{[%clk 0:00:07]} 38. Ne5 {[%clk 0:00:29.1]} 38... Nh3+ {[%clk 0:00:07.2]} 39.
Kf1 {[%clk 0:00:27.3]} 39... Rf2+ {[%clk 0:00:06.7]} 40. Ke1 {[%clk 0:00:27.4]}
40... Rf5 {[%clk 0:00:07.6]} 41. Nd3 {[%clk 0:00:26.7]} 41... Rf3 {[%clk
0:00:06.2]} 42. Ke2 {[%clk 0:00:21.5]} 42... Rxg3 {[%clk 0:00:06.3]} 43. Ne5
{[%clk 0:00:21.3]} 43... Kg8 {[%clk 0:00:04.8]} 44. Nxf7 {[%clk 0:00:20.5]}
44... h5 {[%clk 0:00:03.6]} 45. Nd6 {[%clk 0:00:15.8]} 45... Rg4 {[%clk
0:00:02.6]} 46. a4 {[%clk 0:00:10.8]} 46... Rxh4 {[%clk 0:00:02.9]} 47. a5
{[%clk 0:00:11.2]} 47... Ra4 {[%clk 0:00:03.2]} 48. a6 {[%clk 0:00:06.7]} 48...
h4 {[%clk 0:00:03.5]} 49. Ne8 {[%clk 0:00:04.9]} 49... Nf4+ {[%clk 0:00:03.4]}
50. Kf3 {[%clk 0:00:04.3]} 50... h3 {[%clk 0:00:03.7]} 51. Nf6+ {[%clk
0:00:04.8]} 51... Kf8 {[%clk 0:00:03.5]} 52. Nh7+ {[%clk 0:00:03.9]} 52... Ke8
{[%clk 0:00:03.8]} 53. Nf6+ {[%clk 0:00:04.4]} 53... Kd8 {[%clk 0:00:04.4]} 54.
Rh7 {[%clk 0:00:02.4]} 54... Rxa6 {[%clk 0:00:01.9]} 55. Ne4 {[%clk 0:00:02.7]}
55... g5 {[%clk 0:00:01.4]} 56. Nxg5 {[%clk 0:00:02.5]} 56... Rf6 {[%clk
0:00:02]} 57. Rh8+ {[%clk 0:00:02.8]} 57... Kd7 {[%clk 0:00:02.1]} 58. Kg4
{[%clk 0:00:03.6]} 58... Kc6 {[%clk 0:00:01.3]} 59. Nxh3 {[%clk 0:00:03.2]}
59... Nd5 {[%clk 0:00:01.6]} 60. Kg5 {[%clk 0:00:03.3]} 60... Rf1 {[%clk
0:00:01.4]} 61. Rh6+ {[%clk 0:00:03.9]} 61... Kc5 {[%clk 0:00:01.9]} 62. Rh5
{[%clk 0:00:02.6]} 62... Rf3 {[%clk 0:00:01.9]} 63. Kg4 {[%clk 0:00:02.8]} 63...
Rd3 {[%clk 0:00:02.3]} 64. Nf4 {[%clk 0:00:03.2]} 64... Rd4 {[%clk 0:00:02.9]}
65. Re5 {[%clk 0:00:03.7]} 65... Rxf4+ {[%clk 0:00:02.7]} 66. Kg5 {[%clk
0:00:02.6]} 66... Rd4 {[%clk 0:00:03.6]} 67. Re8 {[%clk 0:00:02.5]} 67... Rd1
{[%clk 0:00:03.6]} 68. Rh8 {[%clk 0:00:03.4]} 68... Rg1+ {[%clk 0:00:03.3]} 69.
Kf5 {[%clk 0:00:03.9]} 69... Rf1+ {[%clk 0:00:03.8]} 70. Kg5 {[%clk 0:00:03.5]}
70... Kd4 {[%clk 0:00:03.4]} 71. Kg4 {[%clk 0:00:03.6]} 71... Ne3+ {[%clk
0:00:02.4]} 72. Kg3 {[%clk 0:00:03]} 72... Kd3 {[%clk 0:00:02.3]} 73. Re8 {[%clk
0:00:03.5]} 73... Ke2 {[%clk 0:00:02.6]} 74. Kh4 {[%clk 0:00:03.3]} 74... Rg1
{[%clk 0:00:02.6]} 75. Kh5 {[%clk 0:00:03.1]} 75... Kf3 {[%clk 0:00:02.7]} 76.
Rf8+ {[%clk 0:00:03.7]} 76... Ke4 {[%clk 0:00:03.1]} 77. Kh6 {[%clk 0:00:04.3]}
77... Nf5+ {[%clk 0:00:03]} 78. Kh5 {[%clk 0:00:04.4]} 78... Kf4 {[%clk
0:00:02.1]} 79. Rg8 {[%clk 0:00:02.5]} 79... Rh1+ {[%clk 0:00:01.3]} 80. Kg6
{[%clk 0:00:03.1]} 80... Ne7+ {[%clk 0:00:02.2]} 81. Kf7 {[%clk 0:00:03.7]}
81... Nxg8 {[%clk 0:00:03.1]} 82. Kxg8 {[%clk 0:00:04.5]} 82... Kf5 {[%clk
0:00:03.4]} 83. Kf7 {[%clk 0:00:05.4]} 83... Rh7+ {[%clk 0:00:03.1]} 0-1

[Event "*** Titled Tuesday Blitz"]
[Site "Chess.com"]
[Date "2021.04.27"]
[Round "9"]
[White "masteryoungK"]
[Black "levallem"]
[Result "1-0"]
[WhiteElo "2430"]
[BlackElo "2274"]
[TimeControl "180+1"]
[EndTime "11:45:22 PDT"]
[Termination "masteryoungK won on time"]

1. e4 {[%clk 0:03:00.9]} 1... d5 {[%clk 0:02:57.6]} 2. exd5 {[%clk 0:03:00.2]}
2... Qxd5 {[%clk 0:02:53.8]} 3. Nc3 {[%clk 0:03:01.1]} 3... Qa5 {[%clk
0:02:54.1]} 4. Nf3 {[%clk 0:03:01.2]} 4... Nf6 {[%clk 0:02:51.4]} 5. Bc4 {[%clk
0:03:00.1]} 5... c6 {[%clk 0:02:51.6]} 6. d3 {[%clk 0:03:00.3]} 6... e6 {[%clk
0:02:50.7]} 7. O-O {[%clk 0:02:59.7]} 7... Bd6 {[%clk 0:02:50.7]} 8. Re1 {[%clk
0:02:54.1]} 8... Qc7 {[%clk 0:02:51]} 9. Ne4 {[%clk 0:02:49.4]} 9... Nxe4 {[%clk
0:02:48.2]} 10. dxe4 {[%clk 0:02:50.3]} 10... O-O {[%clk 0:02:48.4]} 11. e5
{[%clk 0:02:48.9]} 11... Be7 {[%clk 0:02:48.8]} 12. Bg5 {[%clk 0:02:41.7]} 12...
Bxg5 {[%clk 0:02:43]} 13. Nxg5 {[%clk 0:02:42.6]} 13... h6 {[%clk 0:02:43.3]}
14. Nf3 {[%clk 0:02:15.6]} 14... Nd7 {[%clk 0:02:34.9]} 15. Qd6 {[%clk
0:02:15.4]} 15... Qxd6 {[%clk 0:02:32.4]} 16. exd6 {[%clk 0:02:16.3]} 16... Nb6
{[%clk 0:02:32.3]} 17. Bb3 {[%clk 0:02:15]} 17... Bd7 {[%clk 0:02:31.7]} 18. Ne5
{[%clk 0:02:11.7]} 18... c5 {[%clk 0:02:21]} 19. c3 {[%clk 0:01:48]} 19... Rad8
{[%clk 0:02:15]} 20. Rad1 {[%clk 0:01:48]} 20... a5 {[%clk 0:02:12.2]} 21. f4
{[%clk 0:01:46.1]} 21... a4 {[%clk 0:02:11.3]} 22. Bc2 {[%clk 0:01:46.5]} 22...
Bb5 {[%clk 0:02:04.8]} 23. Be4 {[%clk 0:01:45.8]} 23... Ba6 {[%clk 0:01:59.8]}
24. f5 {[%clk 0:01:39.2]} 24... Rfe8 {[%clk 0:01:48]} 25. b3 {[%clk 0:01:07.5]}
25... axb3 {[%clk 0:01:41.4]} 26. axb3 {[%clk 0:01:08.4]} 26... Nd7 {[%clk
0:01:37.2]} 27. Nxf7 {[%clk 0:00:43.5]} 27... Kxf7 {[%clk 0:01:18]} 28. fxe6+
{[%clk 0:00:43.9]} 28... Rxe6 {[%clk 0:00:50.3]} 29. Bd5 {[%clk 0:00:44.2]}
29... Nf8 {[%clk 0:00:49.4]} 30. c4 {[%clk 0:00:31.2]} 30... Rxd6 {[%clk
0:00:46]} 31. Bxe6+ {[%clk 0:00:26.1]} 31... Rxe6 {[%clk 0:00:45.2]} 32. Rf1+
{[%clk 0:00:22.2]} 32... Ke7 {[%clk 0:00:42.5]} 33. Rd3 {[%clk 0:00:22]} 33...
Nd7 {[%clk 0:00:34.3]} 34. Rg3 {[%clk 0:00:20.2]} 34... g5 {[%clk 0:00:32.7]}
35. h4 {[%clk 0:00:20.8]} 35... Re5 {[%clk 0:00:27.2]} 36. hxg5 {[%clk
0:00:20.4]} 36... hxg5 {[%clk 0:00:27.1]} 37. Rgf3 {[%clk 0:00:18.2]} 37... b5
{[%clk 0:00:18]} 38. Rf7+ {[%clk 0:00:18.5]} 38... Kd6 {[%clk 0:00:18]} 39. cxb5
{[%clk 0:00:11.8]} 39... Bxb5 {[%clk 0:00:17.6]} 40. Rd1+ {[%clk 0:00:12.3]}
40... Ke6 {[%clk 0:00:17.9]} 41. Rh7 {[%clk 0:00:12]} 41... Nf6 {[%clk
0:00:12.6]} 42. Rb7 {[%clk 0:00:11.9]} 42... Be2 {[%clk 0:00:11.3]} 43. Re1
{[%clk 0:00:09.4]} 43... Bd3 {[%clk 0:00:09]} 44. Rb6+ {[%clk 0:00:09.5]} 44...
Kf5 {[%clk 0:00:08.8]} 45. Rd1 {[%clk 0:00:09.6]} 45... Be4 {[%clk 0:00:08.3]}
46. Rf1+ {[%clk 0:00:09.3]} 46... Kg4 {[%clk 0:00:06.5]} 47. Rfxf6 {[%clk
0:00:10.2]} 47... Rd5 {[%clk 0:00:06.5]} 48. Rf1 {[%clk 0:00:09.7]} 48... Rd2
{[%clk 0:00:05.7]} 49. Rf2 {[%clk 0:00:10.2]} 49... Rd1+ {[%clk 0:00:05.9]} 50.
Kh2 {[%clk 0:00:10.7]} 50... Rd3 {[%clk 0:00:03]} 51. Re6 {[%clk 0:00:10.9]}
51... Bf5 {[%clk 0:00:02.8]} 52. Re1 {[%clk 0:00:10.5]} 52... Rxb3 {[%clk
0:00:02.6]} 53. Rc1 {[%clk 0:00:10.7]} 53... Bd3 {[%clk 0:00:03]} 54. Rxc5
{[%clk 0:00:10.1]} 54... Be4 {[%clk 0:00:03.8]} 55. Rc4 {[%clk 0:00:10.1]} 55...
Re3 {[%clk 0:00:04.7]} 56. Rd4 {[%clk 0:00:09.2]} 56... Kh5 {[%clk 0:00:04.7]}
57. Rc4 {[%clk 0:00:08.5]} 57... Bh7 {[%clk 0:00:04.9]} 58. Rc5 {[%clk
0:00:08.9]} 58... Bg6 {[%clk 0:00:05]} 59. Rd2 {[%clk 0:00:09.1]} 59... Re7
{[%clk 0:00:04.4]} 60. Rdd5 {[%clk 0:00:09.4]} 60... Kh6 {[%clk 0:00:03.5]} 61.
Rxg5 {[%clk 0:00:10.3]} 61... Re4 {[%clk 0:00:03.9]} 62. Rge5 {[%clk 0:00:10.4]}
62... Rh4+ {[%clk 0:00:04]} 63. Kg3 {[%clk 0:00:10.8]} 63... Rd4 {[%clk
0:00:04.8]} 64. Kf2 {[%clk 0:00:11.3]} 64... Rd6 {[%clk 0:00:05.2]} 65. Rcd5
{[%clk 0:00:11.7]} 65... Rf6+ {[%clk 0:00:05.7]} 66. Kg3 {[%clk 0:00:11.7]}
66... Rb6 {[%clk 0:00:05]} 67. Kf2 {[%clk 0:00:12.1]} 67... Rc6 {[%clk
0:00:05.5]} 68. Ke3 {[%clk 0:00:12.5]} 68... Rc2 {[%clk 0:00:05.8]} 69. g4
{[%clk 0:00:12]} 69... Rc3+ {[%clk 0:00:06.1]} 70. Kf4 {[%clk 0:00:12.4]} 70...
Rc4+ {[%clk 0:00:06.3]} 71. Kg3 {[%clk 0:00:13]} 71... Rc3+ {[%clk 0:00:06.8]}
72. Kh4 {[%clk 0:00:13.4]} 72... Rc4 {[%clk 0:00:07.4]} 73. Rd1 {[%clk
0:00:11.9]} 73... Rf4 {[%clk 0:00:06.9]} 74. Rde1 {[%clk 0:00:12]} 74... Rc4
{[%clk 0:00:07]} 75. Re6 {[%clk 0:00:12]} 75... Rb4 {[%clk 0:00:07]} 76. Rf1
{[%clk 0:00:12.2]} 76... Kg7 {[%clk 0:00:07.3]} 77. Re7+ {[%clk 0:00:10.6]}
77... Kh6 {[%clk 0:00:06.7]} 78. Re3 {[%clk 0:00:11.1]} 78... Kg7 {[%clk
0:00:06.7]} 79. Ref3 {[%clk 0:00:11.5]} 79... Rc4 {[%clk 0:00:06.1]} 80. Rf4
{[%clk 0:00:12]} 80... Rc5 {[%clk 0:00:05.2]} 81. Re1 {[%clk 0:00:12.1]} 81...
Rc2 {[%clk 0:00:05.4]} 82. Re7+ {[%clk 0:00:11.3]} 82... Kg8 {[%clk 0:00:05.1]}
83. Kg5 {[%clk 0:00:11.7]} 83... Rc6 {[%clk 0:00:02.6]} 84. Rd4 {[%clk
0:00:11.7]} 1-0

[Event "*** Titled Tuesday Blitz"]
[Site "Chess.com"]
[Date "2021.04.27"]
[Round "9"]
[White "Grandmaster2B"]
[Black "kubal123"]
[Result "0-1"]
[WhiteElo "2488"]
[BlackElo "2314"]
[TimeControl "180+1"]
[EndTime "11:45:24 PDT"]
[Termination "kubal123 won by checkmate"]

1. e4 {[%clk 0:03:00.9]} 1... c6 {[%clk 0:02:59.8]} 2. d4 {[%clk 0:02:59.2]}
2... d5 {[%clk 0:03:00.7]} 3. exd5 {[%clk 0:03:00.1]} 3... cxd5 {[%clk
0:03:01.1]} 4. Bd3 {[%clk 0:03:00]} 4... Nc6 {[%clk 0:02:54.8]} 5. c3 {[%clk
0:03:00.1]} 5... Nf6 {[%clk 0:02:54.8]} 6. h3 {[%clk 0:03:00.4]} 6... e6 {[%clk
0:02:52.9]} 7. Nf3 {[%clk 0:03:00.3]} 7... Bd6 {[%clk 0:02:53.3]} 8. O-O {[%clk
0:03:01.2]} 8... O-O {[%clk 0:02:52.4]} 9. Re1 {[%clk 0:03:02.1]} 9... a6 {[%clk
0:02:50.7]} 10. Ne5 {[%clk 0:03:01.4]} 10... Nd7 {[%clk 0:02:42.5]} 11. Nf3
{[%clk 0:02:57.8]} 11... b5 {[%clk 0:02:38.8]} 12. a3 {[%clk 0:02:44]} 12... Bb7
{[%clk 0:02:36.2]} 13. Bg5 {[%clk 0:02:37.9]} 13... Qc7 {[%clk 0:02:31.4]} 14.
Nbd2 {[%clk 0:02:38]} 14... Rfe8 {[%clk 0:02:23.3]} 15. Nf1 {[%clk 0:02:33.7]}
15... Nf8 {[%clk 0:02:22.4]} 16. Ne3 {[%clk 0:02:32.2]} 16... Na5 {[%clk
0:02:12.7]} 17. Ng4 {[%clk 0:02:27.4]} 17... Nc4 {[%clk 0:02:05.9]} 18. Qc1
{[%clk 0:02:27.3]} 18... Be7 {[%clk 0:01:52.4]} 19. Bf4 {[%clk 0:02:24.4]} 19...
Bd6 {[%clk 0:01:52.3]} 20. Nfe5 {[%clk 0:02:24]} 20... f6 {[%clk 0:01:42.1]} 21.
Bh6 {[%clk 0:02:07]} 21... fxe5 {[%clk 0:01:36.2]} 22. Qg5 {[%clk 0:02:06.5]}
22... e4 {[%clk 0:01:16.8]} 23. Bxc4 {[%clk 0:01:36.1]} 23... bxc4 {[%clk
0:01:10.2]} 24. Nf6+ {[%clk 0:01:14.5]} 24... Kh8 {[%clk 0:01:08.9]} 25. Nxe8
{[%clk 0:01:00]} 25... Rxe8 {[%clk 0:01:09.8]} 26. Qh5 {[%clk 0:01:00.1]} 26...
Ng6 {[%clk 0:01:01]} 27. Bd2 {[%clk 0:00:54.4]} 27... Rf8 {[%clk 0:01:00.9]} 28.
Rab1 {[%clk 0:00:52.8]} 28... Bh2+ {[%clk 0:00:45.4]} 29. Kf1 {[%clk 0:00:49.5]}
29... Nf4 {[%clk 0:00:26.8]} 30. Qg4 {[%clk 0:00:23]} 30... Nd3 {[%clk
0:00:20.4]} 31. Re2 {[%clk 0:00:21.9]} 31... Bd6 {[%clk 0:00:09.9]} 32. Be3
{[%clk 0:00:20.4]} 32... a5 {[%clk 0:00:08.8]} 33. Kg1 {[%clk 0:00:19.5]} 33...
a4 {[%clk 0:00:06.8]} 34. h4 {[%clk 0:00:19.4]} 34... Qf7 {[%clk 0:00:05.9]} 35.
h5 {[%clk 0:00:18.5]} 35... Qf5 {[%clk 0:00:06.2]} 36. Qh4 {[%clk 0:00:18.1]}
36... Bf4 {[%clk 0:00:05.1]} 37. h6 {[%clk 0:00:13.1]} 37... Bxe3 {[%clk
0:00:03.9]} 38. hxg7+ {[%clk 0:00:13.3]} 38... Kxg7 {[%clk 0:00:04.2]} 39. fxe3
{[%clk 0:00:13]} 39... Qf6 {[%clk 0:00:02.9]} 40. Qg3+ {[%clk 0:00:12.4]} 40...
Kh8 {[%clk 0:00:03.3]} 41. Kh2 {[%clk 0:00:11.2]} 41... Rg8 {[%clk 0:00:03.7]}
42. Qh3 {[%clk 0:00:10.6]} 42... Bc8 {[%clk 0:00:02.5]} 43. Qh5 {[%clk
0:00:09.8]} 43... Qf5 {[%clk 0:00:01.4]} 44. Qxf5 {[%clk 0:00:09.5]} 44... exf5
{[%clk 0:00:01.3]} 45. g3 {[%clk 0:00:10.4]} 45... Rg4 {[%clk 0:00:01.2]} 46.
Rf1 {[%clk 0:00:10]} 46... Rg5 {[%clk 0:00:02.1]} 47. Kg2 {[%clk 0:00:07.8]}
47... Kg7 {[%clk 0:00:03]} 48. Rh1 {[%clk 0:00:08.1]} 48... Kg6 {[%clk
0:00:03.8]} 49. Rh4 {[%clk 0:00:08.2]} 49... h5 {[%clk 0:00:04.2]} 50. Kh2
{[%clk 0:00:07.7]} 50... Rg4 {[%clk 0:00:04.7]} 51. Rh3 {[%clk 0:00:07.5]} 51...
Kg5 {[%clk 0:00:04.2]} 52. Kh1 {[%clk 0:00:05.9]} 52... Be6 {[%clk 0:00:04.8]}
53. Reh2 {[%clk 0:00:05.9]} 53... Bf7 {[%clk 0:00:03.8]} 54. Rg2 {[%clk
0:00:05.6]} 54... Bg6 {[%clk 0:00:04.2]} 55. Rh4 {[%clk 0:00:05.4]} 55... Kf6
{[%clk 0:00:04.5]} 56. Rh3 {[%clk 0:00:05.5]} 56... Bf7 {[%clk 0:00:03]} 57.
Rhh2 {[%clk 0:00:05.4]} 57... Rg8 {[%clk 0:00:03.3]} 58. Kg1 {[%clk 0:00:05.6]}
58... Rb8 {[%clk 0:00:03.6]} 59. Kf1 {[%clk 0:00:05.2]} 59... Kg5 {[%clk
0:00:04.1]} 60. Kg1 {[%clk 0:00:03.6]} 60... Kg4 {[%clk 0:00:04.1]} 61. Kf1
{[%clk 0:00:03]} 61... Kf3 {[%clk 0:00:03.8]} 62. Re2 {[%clk 0:00:03.5]} 62...
Kxg3 {[%clk 0:00:03.2]} 63. Rhg2+ {[%clk 0:00:04.1]} 63... Kf3 {[%clk
0:00:03.4]} 64. Rh2 {[%clk 0:00:05]} 64... Kg4 {[%clk 0:00:03.3]} 65. Rhg2+
{[%clk 0:00:05.4]} 65... Kh4 {[%clk 0:00:03.1]} 66. Rh2+ {[%clk 0:00:06.3]}
66... Kg5 {[%clk 0:00:03.3]} 67. Rhg2+ {[%clk 0:00:07.2]} 67... Kf6 {[%clk
0:00:03.7]} 68. Rh2 {[%clk 0:00:08.1]} 68... Rg8 {[%clk 0:00:03.3]} 69. Rh4
{[%clk 0:00:07.6]} 69... Rg4 {[%clk 0:00:01.7]} 70. Rhh2 {[%clk 0:00:07.8]}
70... Kg5 {[%clk 0:00:02]} 71. Rh1 {[%clk 0:00:06.9]} 71... h4 {[%clk
0:00:02.9]} 72. Reh2 {[%clk 0:00:07.1]} 72... Nc1 {[%clk 0:00:01.6]} 73. Ke1
{[%clk 0:00:05.6]} 73... Nd3+ {[%clk 0:00:02.5]} 74. Kd2 {[%clk 0:00:05.6]}
74... Bh5 {[%clk 0:00:01.9]} 75. Kc2 {[%clk 0:00:05.1]} 75... Rg3 {[%clk
0:00:01.6]} 76. Rxh4 {[%clk 0:00:04.8]} 76... Bg4 {[%clk 0:00:01.8]} 77. Rh8
{[%clk 0:00:04.7]} 77... Rxe3 {[%clk 0:00:02.3]} 78. Rg8+ {[%clk 0:00:05.6]}
78... Kf4 {[%clk 0:00:02.6]} 79. Rf1+ {[%clk 0:00:05.8]} 79... Rf3 {[%clk
0:00:02.8]} 80. Rg1 {[%clk 0:00:06.4]} 80... Rf2+ {[%clk 0:00:03]} 81. Kb1
{[%clk 0:00:06.5]} 81... Rxb2+ {[%clk 0:00:03.3]} 82. Ka1 {[%clk 0:00:07.4]}
82... Rb3 {[%clk 0:00:03.5]} 83. Rf1+ {[%clk 0:00:05.6]} 83... Bf3 {[%clk
0:00:02.6]} 84. Rh8 {[%clk 0:00:05.6]} 84... Rxa3+ {[%clk 0:00:02.7]} 85. Kb1
{[%clk 0:00:06.5]} 85... Rb3+ {[%clk 0:00:03]} 86. Kc2 {[%clk 0:00:07.4]} 86...
Rb2# {[%clk 0:00:03.1]} 0-1